fUSD/lending_fUSD_20250108
["ID","MTS","AMOUNT","RATE_DAILY","PERIOD"]
[348139287,1736351443591,-5446.07772427,0.00011589,2]
[348139289,1736351443600,-95.50787299,0.00011628,2]
[348139298,1736351443671,-500.0,0.00010267,2]
[348139300,1736351443680,-1129.99212701,0.00011628,2]
[348139302,1736351443690,-1179.61,0.00011637,2]
[348139304,1736351443700,-2889.81,0.00011637,2]
[348139306,1736351443710,-592.75,0.00011637,2]
[348139308,1736351443720,-755.89,0.00011637,2]
[348139310,1736351443729,-1682.27,0.00011637,2]
[348139312,1736351443739,-166.77446952,0.00011637,2]
[348139314,1736351443749,-3045.23,0.00011637,2]
[348139316,1736351443758,-564.83,0.00011637,2]
[348139318,1736351443768,-500.0,0.00011637,2]
[348139320,1736351443777,-1098.35,0.00011637,2]
[348139322,1736351443786,-1201.34,0.00011637,2]
[348139324,1736351443797,-808.84,0.00011637,2]
[348139327,1736351443809,-614.32,0.00011637,2]
[348139329,1736351443818,-769.2,0.00011637,2]
[348139331,1736351443827,-785.02,0.00011638,2]
[348139332,1736351443837,-1609.68,0.00011638,2]
[348139335,1736351443846,-917.99,0.00011638,2]
[348139337,1736351443856,-2242.48,0.00011638,2]
[348139339,1736351443865,-927.01,0.00011638,2]
[348139341,1736351443874,-1268.35,0.00011638,2]
[348139343,1736351443884,-763.65,0.00011638,2]
[348139345,1736351443893,-547.06,0.00011638,2]
[348139346,1736351443903,-676.76,0.00011638,2]
[348139349,1736351443912,-1743.08,0.00011638,2]
[348139351,1736351443922,-954.48,0.00011638,2]
[348139353,1736351443931,-535.01,0.00011638,2]
[348139355,1736351443940,-500.0,0.00011638,2]
[348139357,1736351443950,-500.0,0.00011638,2]
[348139359,1736351443959,-629.91,0.00011638,2]
[348139361,1736351443968,-500.0,0.00011638,2]
[348139363,1736351443978,-530.48,0.00011638,2]
[348139365,1736351443987,-500.0,0.00011642,2]
[348139367,1736351443997,-500.0,0.00011642,2]
[348139369,1736351444007,-500.0,0.00011642,2]
[348139371,1736351444017,-851.01,0.00011642,2]
[348139373,1736351444026,-500.0,0.00011642,2]
[348139375,1736351444036,-500.0,0.00011642,2]
[348139377,1736351444046,-300.97531961,0.00011642,2]
[348139379,1736351444056,-500.0,0.00011642,2]
[348139381,1736351444066,-500.0,0.00011642,2]
[348139383,1736351444076,-499.14207704,0.00011642,2]
[348139468,1736351444986,-413.4070246,0.00010156,2]
[348139470,1736351444999,-437.6429754,0.00010156,2]
[348139472,1736351445009,-500.0,0.00010156,2]
[348139474,1736351445018,-500.0,0.00010156,2]
[348139476,1736351445028,-550.67504836,0.00010156,2]
[348139478,1736351445037,-500.0,0.00010272,2]
[348139480,1736351445047,-851.05,0.0001043,2]
[348139482,1736351445057,-500.0,0.0001043,2]
[348139484,1736351445067,-851.05,0.00010704,2]
[348139486,1736351445076,-282.57,0.00010704,2]
[348139488,1736351445085,-851.05,0.00010978,2]
[348139490,1736351445095,-132.22792296,0.00011642,2]
[348139492,1736351445105,-500.0,0.00011642,2]
[348139494,1736351445114,-500.0,0.00011642,2]
[348139496,1736351445125,-500.0,0.00011642,2]
[348139498,1736351445134,-500.0,0.00011642,2]
[348139500,1736351445144,-508.66,0.00011642,2]
[348139502,1736351445154,-500.0,0.00011642,2]
[348139504,1736351445164,-500.0,0.00011642,2]
[348139506,1736351445174,-500.0,0.00011642,2]
[348139508,1736351445184,-500.0,0.00011642,2]
[348139510,1736351445194,-338.95399573,0.00011642,2]
[348139512,1736351445203,-500.0,0.00011642,2]
[348139514,1736351445213,-500.0,0.00011642,2]
[348139516,1736351445223,-500.0,0.00011642,2]
[348139518,1736351445232,-500.0,0.00011642,2]
[348139520,1736351445241,-500.0,0.00011642,2]
[348139522,1736351445250,-1159.04,0.00011642,2]
[348139524,1736351445260,-500.0,0.00011642,2]
[348139526,1736351445270,-1992.24,0.00011642,2]
[348139528,1736351445280,-1522.68,0.00011642,2]
[348139530,1736351445289,-500.0,0.00011642,2]
[348139532,1736351445299,-500.0,0.00011642,2]
[348139534,1736351445310,-1958.06,0.00011642,2]
[348139536,1736351445323,-500.0,0.00011642,2]
[348139538,1736351445333,-500.0,0.00011642,2]
[348139540,1736351445342,-500.0,0.00011642,2]
[348139542,1736351445351,-500.0,0.00011642,2]
[348139544,1736351445361,-500.0,0.00011642,2]
[348139546,1736351445371,-500.0,0.00011642,2]
[348139548,1736351445381,-500.0,0.00011642,2]
[348139550,1736351445390,-500.0,0.00011642,2]
[348139551,1736351445399,-757.22592,0.00011643,2]
[348139553,1736351445410,-2136.64,0.00011643,2]
[348139555,1736351445419,-741.65727,0.00011643,2]
[348139557,1736351445429,-500.0,0.00011643,2]
[348139559,1736351445438,-2004.82,0.00011643,2]
[348139561,1736351445448,-500.0,0.00011643,2]
[348139562,1736351445457,-504.32,0.00011643,2]
[348139564,1736351445467,-500.0,0.00011643,2]
[348139566,1736351445477,-500.0,0.00011643,2]
[348139568,1736351445486,-575.38,0.00011643,2]
[348139570,1736351445500,-500.0,0.00011643,2]
[348139572,1736351445509,-821.07,0.00011643,2]
[348139573,1736351445519,-500.0,0.00011643,2]
[348139575,1736351445528,-528.46,0.00011643,2]
[348139577,1736351445538,-537.82,0.00011643,2]
[348139579,1736351445548,-948.76,0.00011643,2]
[348139581,1736351445560,-956.46,0.00011643,2]
[348139582,1736351445570,-251.48686755,0.00011643,2]
[348139584,1736351445583,-248.51313245,0.00011643,2]
[348139586,1736351445594,-670.57,0.00011643,2]
[348139588,1736351445603,-500.0,0.00011643,2]
[348139591,1736351445613,-500.0,0.00011643,2]
[348139592,1736351445622,-1440.49,0.00011643,2]
[348139594,1736351445632,-500.0,0.00011643,2]
[348139596,1736351445642,-500.0,0.00011643,2]
[348139598,1736351445651,-726.92,0.00011643,2]
[348139600,1736351445661,-500.0,0.00011643,2]
[348139601,1736351445671,-500.0,0.00011643,2]
[348139603,1736351445681,-500.0,0.00011643,2]
[348139605,1736351445690,-2620.57,0.00011643,2]
[348139607,1736351445699,-650.46,0.00011643,2]
[348139609,1736351445708,-407.48506755,0.00011643,2]
[348139611,1736351445720,-1725.58493245,0.00011643,2]
[348139612,1736351445729,-540.05,0.00011643,2]
[348139614,1736351445739,-500.0,0.00011643,2]
[348139616,1736351445748,-983.48,0.00011643,2]
[348139618,1736351445759,-2063.57,0.00011643,2]
[348139620,1736351445768,-500.0,0.00011643,2]
[348139622,1736351445778,-994.44,0.00011643,2]
[348139623,1736351445787,-760.62,0.00011643,2]
[348139625,1736351445797,-211.17,0.0001166,2]
[348139627,1736351445811,-500.0,0.00011669,2]
[348139629,1736351445822,-2000.0,0.00011669,2]
[348139631,1736351445831,-158.34895873,0.00011687,2]
[348139632,1736351445840,-1000.0,0.0001178,2]
[348139634,1736351445850,-1000.0,0.0001178,2]
[348139636,1736351445859,-1000.0,0.0001178,2]
[348139638,1736351445868,-1000.0,0.0001178,2]
[348139639,1736351445878,-1000.0,0.0001178,2]
[348139641,1736351445887,-1000.0,0.0001178,2]
[348139643,1736351445897,-1000.0,0.0001178,2]
[348139645,1736351445907,-1000.0,0.0001178,2]
[348139646,1736351445916,-1000.0,0.0001178,2]
[348139647,1736351445925,-1000.0,0.0001178,2]
[348139648,1736351445934,-1000.0,0.0001178,2]
[348139649,1736351445943,-1000.0,0.0001178,2]
[348139650,1736351445953,-1000.0,0.0001178,2]
[348139651,1736351445962,-1000.0,0.0001178,2]
[348139652,1736351445971,-1000.0,0.0001178,2]
[348139653,1736351445981,-1000.0,0.0001178,2]
[348139654,1736351445991,-1000.0,0.0001178,2]
[348139655,1736351446001,-1000.0,0.0001178,2]
[348139656,1736351446010,-1000.0,0.0001178,2]
[348139657,1736351446019,-1000.0,0.0001178,2]
[348139658,1736351446029,-622.7267151,0.0001178,2]
[348139659,1736351446039,-500.0,0.0001178,2]
[348139660,1736351446049,-326.83271624,0.0001178,2]
[348139661,1736351446063,-669.37,0.00011789,2]
[348139662,1736351446072,-1159.16,0.000118,2]
[348139663,1736351446082,-871.12,0.000118,2]
[348139664,1736351446092,-500.0,0.000118,2]
[348139665,1736351446102,-866.61,0.000118,2]
[348139666,1736351446113,-500.0,0.000118,2]
[348139667,1736351446123,-1425.36,0.000118,2]
[348139668,1736351446134,-500.0,0.000118,2]
[348139669,1736351446143,-500.0,0.000118,2]
[348139670,1736351446152,-536.78,0.000118,2]
[348139671,1736351446163,-948.63,0.000118,2]
[348139672,1736351446172,-637.67,0.000118,2]
[348139673,1736351446181,-1165.4,0.000118,2]
[348139674,1736351446191,-500.0,0.000118,2]
[348139675,1736351446201,-500.0,0.000118,2]
[348139676,1736351446210,-1318.86,0.00011801,2]
[348139677,1736351446219,-1257.07,0.00011801,2]
[348139678,1736351446229,-6454.55,0.00011801,2]
[348139679,1736351446238,-500.0,0.00011801,2]
[348139680,1736351446248,-500.0,0.00011801,2]
[348139681,1736351446258,-500.0,0.00011801,2]
[348139682,1736351446267,-3133.23,0.00011801,2]
[348139683,1736351446277,-692.94,0.00011801,2]
[348139684,1736351446287,-732.59,0.00011801,2]
[348139685,1736351446297,-500.0,0.00011801,2]
[348139686,1736351446309,-670.81,0.00011801,2]
[348139687,1736351446320,-506.95,0.00011802,2]
[348139688,1736351446329,-1285.62,0.00011802,2]
[348139689,1736351446339,-500.0,0.00011802,2]
[348139690,1736351446348,-1434.18,0.00011802,2]
[348139691,1736351446357,-1097.0,0.00011903,2]
[348139692,1736351446368,-2889.81,0.00011911,2]
[348139693,1736351446378,-592.75,0.00011911,2]
[348139694,1736351446387,-116.45509804,0.00011911,2]
[348139695,1736351446402,-639.43490196,0.00011911,2]
[348139696,1736351446412,-1682.27,0.00011911,2]
[348139697,1736351446422,-617.32413738,0.00011911,2]
[348139698,1736351446438,-1016.0573629,0.00011911,2]
[348139699,1736351446448,-404.58,0.00011911,2]
[348139700,1736351446459,-486.4185678,0.00011911,2]
[348139701,1736351446827,-379.2789001,0.00010156,2]
[348139702,1736351446839,-120.7210999,0.00010156,2]
[348139703,1736351446848,-500.0,0.00010156,2]
[348139704,1736351446857,-500.0,0.0001043,2]
[348139705,1736351446866,-129.04863801,0.00011252,2]
[348139706,1736351446895,-500.0,0.00010704,2]
[348139707,1736351446905,-722.00136199,0.00011252,2]
[348139708,1736351446914,-851.05,0.00011526,2]
[348139709,1736351446923,-672.71846881,0.000118,2]
[348139710,1736351446934,-178.33153119,0.000118,2]
[348139711,1736351446943,-520.84993192,0.00011911,2]
[348139712,1736351446952,-191.14457685,0.00011911,2]
[348139713,1736351446963,-373.68542315,0.00011911,2]
[348139714,1736351446972,-500.0,0.00011911,2]
[348139715,1736351446981,-1098.35,0.00011911,2]
[348139716,1736351446990,-1201.34,0.00011911,2]
[348139717,1736351446999,-808.84,0.00011911,2]
[348139718,1736351447008,-769.2,0.00011911,2]
[348139719,1736351447018,-1609.68,0.00011912,2]
[348139720,1736351447028,-917.99,0.00011912,2]
[348139721,1736351447037,-2242.48,0.00011912,2]
[348139722,1736351447047,-927.01,0.00011912,2]
[348139723,1736351447056,-1268.35,0.00011912,2]
[348139724,1736351447065,-763.65,0.00011912,2]
[348139725,1736351447074,-547.06,0.00011912,2]
[348139726,1736351447083,-676.76,0.00011912,2]
[348139727,1736351447092,-706.64021493,0.00011912,2]
[348139728,1736351447104,-1036.43978507,0.00011912,2]
[348139729,1736351447113,-954.48,0.00011912,2]
[348139730,1736351447122,-535.01,0.00011912,2]
[348139731,1736351447131,-500.0,0.00011912,2]
[348139732,1736351447140,-500.0,0.00011912,2]
[348139733,1736351447149,-629.91,0.00011912,2]
[348139734,1736351447159,-500.0,0.00011912,2]
[348139735,1736351447168,-530.48,0.00011912,2]
[348139736,1736351447179,-2970.1390827,0.00011916,2]
[348139737,1736351447192,-1922.8547426,0.00011916,2]
[348139738,1736351447201,-500.0,0.00011916,2]
[348139739,1736351447211,-500.0,0.00011916,2]
[348139740,1736351447221,-500.0,0.00011916,2]
[348139741,1736351447231,-851.01,0.00011916,2]
[348139742,1736351447241,-500.0,0.00011916,2]
[348139743,1736351447251,-500.0,0.00011916,2]
[348139744,1736351447261,-500.0,0.00011916,2]
[348139745,1736351447271,-500.0,0.00011916,2]
[348139746,1736351447281,-631.37,0.00011916,2]
[348139747,1736351447290,-500.0,0.00011916,2]
[348139748,1736351447300,-500.0,0.00011916,2]
[348139749,1736351447312,-500.0,0.00011916,2]
[348139750,1736351447326,-500.0,0.00011916,2]
[348139751,1736351447336,-508.66,0.00011916,2]
[348139752,1736351447346,-500.0,0.00011916,2]
[348139753,1736351447356,-500.0,0.00011916,2]
[348139754,1736351447366,-500.0,0.00011916,2]
[348139755,1736351447376,-500.0,0.00011916,2]
[348139756,1736351447385,-500.0,0.00011916,2]
[348139757,1736351447395,-500.0,0.00011916,2]
[348139758,1736351447406,-500.0,0.00011916,2]
[348139759,1736351447416,-500.0,0.00011916,2]
[348139760,1736351447425,-500.0,0.00011916,2]
[348139761,1736351447435,-1159.04,0.00011916,2]
[348139762,1736351447444,-500.0,0.00011916,2]
[348139763,1736351447454,-1992.24,0.00011916,2]
[348139764,1736351447463,-500.0,0.00011916,2]
[348139765,1736351447473,-1522.68,0.00011916,2]
[348139766,1736351447483,-500.0,0.00011916,2]
[348139767,1736351447493,-1958.06,0.00011916,2]
[348139768,1736351447502,-500.0,0.00011916,2]
[348139769,1736351447512,-500.0,0.00011916,2]
[348139770,1736351447522,-500.0,0.00011916,2]
[348139771,1736351447531,-500.0,0.00011916,2]
[348139772,1736351447541,-500.0,0.00011916,2]
[348139773,1736351447551,-500.0,0.00011916,2]
[348139774,1736351447563,-500.0,0.00011916,2]
[348139775,1736351447573,-500.0,0.00011916,2]
[348139776,1736351447582,-757.22592,0.00011917,2]
[348139777,1736351447592,-1798.23298784,0.00011917,2]
[348139778,1736351447619,-338.40701216,0.00011917,2]
[348139779,1736351447628,-741.65727,0.00011917,2]
[348139780,1736351447638,-614.75723897,0.00011917,2]
[348139781,1736351447648,-1721.76585003,0.00011917,2]
[348139782,1736351447841,581.98,9.999e-05,2]
[348139783,1736351448004,-657.7079,0.00010057,2]
[348139784,1736351448014,-500.0,0.00010156,2]
[348139785,1736351448024,-500.0,0.00010156,2]
[348139786,1736351448035,-500.0,0.00010272,2]
[348139787,1736351448043,-500.0,0.00010272,2]
[348139788,1736351448053,-500.0,0.00010978,2]
[348139789,1736351448064,-500.0,0.00011252,2]
[348139790,1736351448075,-500.0,0.00011526,2]
[348139791,1736351448085,-622.91,0.000118,2]
[348139792,1736351448095,-283.05414997,0.00011917,2]
[348139793,1736351448105,-500.0,0.00011917,2]
[348139794,1736351448115,-504.32,0.00011917,2]
[348139795,1736351448125,-500.0,0.00011917,2]
[348139796,1736351448134,-500.0,0.00011917,2]
[348139797,1736351448143,-575.38,0.00011917,2]
[348139798,1736351448152,-500.0,0.00011917,2]
[348139799,1736351448162,-648.34694264,0.00011917,2]
[348139800,1736351448184,-172.72305736,0.00011917,2]
[348139801,1736351448194,-169.17139964,0.00011917,2]
[348139802,1736351448204,-507.518543,0.00011917,2]
[348139803,1736351448216,-20.941457,0.00011917,2]
[348139804,1736351448225,-537.82,0.00011917,2]
[348139805,1736351448235,-948.76,0.00011917,2]
[348139806,1736351448245,-956.46,0.00011917,2]
[348139807,1736351448255,-500.0,0.00011917,2]
[348139808,1736351448264,-670.57,0.00011917,2]
[348139809,1736351448274,-500.0,0.00011917,2]
[348139810,1736351448284,-423.25,0.00011917,2]
[348139811,1736351448294,-1440.49,0.00011917,2]
[348139812,1736351448304,-500.0,0.00011917,2]
[348139813,1736351448314,-500.0,0.00011917,2]
[348139814,1736351448328,-726.92,0.00011917,2]
[348139815,1736351448338,-500.0,0.00011917,2]
[348139816,1736351448347,-500.0,0.00011917,2]
[348139817,1736351448357,-500.0,0.00011917,2]
[348139818,1736351448366,-2620.57,0.00011917,2]
[348139819,1736351448375,-650.46,0.00011917,2]
[348139820,1736351448385,-2133.07,0.00011917,2]
[348139821,1736351448394,-540.05,0.00011917,2]
[348139822,1736351448403,-983.48,0.00011917,2]
[348139823,1736351448414,-2063.57,0.00011917,2]
[348139824,1736351448424,-994.44,0.00011917,2]
[348139825,1736351448434,-760.62,0.00011917,2]
[348139826,1736351448444,-158.34895873,0.00011942,2]
[348139827,1736351448454,-1000.0,0.00011999,2]
[348139828,1736351448463,-2651.65,0.00012,2]
[348139829,1736351448474,-5415.68575426,0.00012,4]
[348139830,1736351448484,-288.0089276,0.00012024,2]
[348139831,1736351448494,-429.70395169,0.00012024,2]
[348139832,1736351448505,-200.0,0.00012055,2]
[348139833,1736351448515,-190.93,0.00012059,2]
[348139834,1736351448525,-1000.0,0.00012059,2]
[348139835,1736351448535,-669.37,0.00012063,2]
[348139836,1736351448545,-1159.16,0.00012074,2]
[348139837,1736351448555,-871.12,0.00012074,2]
[348139838,1736351448565,-500.0,0.00012074,2]
[348139839,1736351448575,-866.61,0.00012074,2]
[348139840,1736351448584,-500.0,0.00012074,2]
[348139841,1736351448772,-1425.36,0.00012074,2]
[348139842,1736351448783,-500.0,0.00012074,2]
[348139843,1736351448793,-536.78,0.00012074,2]
[348139844,1736351448803,-500.0,0.00012074,2]
[348139845,1736351448814,-948.63,0.00012074,2]
[348139846,1736351448823,-637.67,0.00012074,2]
[348139847,1736351448834,-1165.4,0.00012074,2]
[348139848,1736351448843,-500.0,0.00012074,2]
[348139849,1736351448853,-500.0,0.00012074,2]
[348139850,1736351448864,-851.05,0.00012074,2]
[348139851,1736351448874,-1318.86,0.00012075,2]
[348139852,1736351448883,-1257.07,0.00012075,2]
[348139853,1736351448893,-6454.55,0.00012075,2]
[348139854,1736351448902,-500.0,0.00012075,2]
[348139855,1736351448912,-500.0,0.00012075,2]
[348139856,1736351448923,-500.0,0.00012075,2]
[348139857,1736351448933,-3133.23,0.00012075,2]
[348139858,1736351448943,-692.94,0.00012075,2]
[348139859,1736351448953,-732.59,0.00012075,2]
[348139860,1736351448966,-500.0,0.00012075,2]
[348139861,1736351448975,-670.81,0.00012075,2]
[348139862,1736351448984,-506.95,0.00012076,2]
[348139863,1736351448994,-1285.62,0.00012076,2]
[348139864,1736351449003,-500.0,0.00012076,2]
[348139865,1736351449012,-1434.18,0.00012076,2]
[348139866,1736351449022,-3000.0,0.0001215,2]
[348139867,1736351449031,-7954.7903,0.0001217,2]
[348139868,1736351449040,-592.75,0.00012185,2]
[348139869,1736351449049,-755.89,0.00012185,2]
[348139870,1736351449059,-1682.27,0.00012185,2]
[348139871,1736351449069,-3045.23,0.00012185,2]
[348139872,1736351449079,-564.83,0.00012185,2]
[348139873,1736351449088,-500.0,0.00012185,2]
[348139874,1736351449097,-1098.35,0.00012185,2]
[348139875,1736351449107,-1201.34,0.00012185,2]
[348139876,1736351449116,-808.84,0.00012185,2]
[348139877,1736351449126,-769.2,0.00012185,2]
[348139878,1736351449135,-1609.68,0.00012186,2]
[348139879,1736351449145,-917.99,0.00012186,2]
[348139880,1736351449155,-2242.48,0.00012186,2]
[348139881,1736351449164,-927.01,0.00012186,2]
[348139882,1736351449173,-1268.35,0.00012186,2]
[348139883,1736351449183,-763.65,0.00012186,2]
[348139884,1736351449192,-547.06,0.00012186,2]
[348139885,1736351449201,-676.76,0.00012186,2]
[348139886,1736351449211,-1743.08,0.00012186,2]
[348139887,1736351449221,-954.48,0.00012186,2]
[348139888,1736351449230,-535.01,0.00012186,2]
[348139889,1736351449240,-500.0,0.00012186,2]
[348139890,1736351449249,-500.0,0.00012186,2]
[348139891,1736351449259,-629.91,0.00012186,2]
[348139892,1736351449268,-500.0,0.00012186,2]
[348139893,1736351449277,-530.48,0.00012186,2]
[348139894,1736351449288,-500.0,0.0001219,2]
[348139895,1736351449297,-500.0,0.0001219,2]
[348139896,1736351449307,-851.01,0.0001219,2]
[348139897,1736351449318,-500.0,0.0001219,2]
[348139898,1736351449329,-500.0,0.0001219,2]
[348139899,1736351449338,-500.0,0.0001219,2]
[348139900,1736351449347,-500.0,0.0001219,2]
[348139901,1736351449356,-631.37,0.0001219,2]
[348139902,1736351449367,-500.0,0.0001219,2]
[348139903,1736351449376,-299.0102934,0.0001219,2]
[348139904,1736351449386,-500.0,0.0001219,2]
[348139905,1736351449397,-500.0,0.0001219,2]
[348139906,1736351449406,-508.66,0.0001219,2]
[348139907,1736351449416,-500.0,0.0001219,2]
[348139908,1736351449426,-500.0,0.0001219,2]
[348139909,1736351449435,-500.0,0.0001219,2]
[348139910,1736351449445,-500.0,0.0001219,2]
[348139911,1736351449454,-500.0,0.0001219,2]
[348139912,1736351449464,-500.0,0.0001219,2]
[348139913,1736351449474,-500.0,0.0001219,2]
[348139914,1736351449484,-500.0,0.0001219,2]
[348139915,1736351449495,-500.0,0.0001219,2]
[348139916,1736351449506,-1159.04,0.0001219,2]
[348139917,1736351449516,-500.0,0.0001219,2]
[348139918,1736351449527,-1992.24,0.0001219,2]
[348139919,1736351449538,-378.10353016,0.0001219,2]
[348139920,1736351449547,-1522.68,0.0001219,2]
[348139921,1736351449559,-361.35937373,0.0001219,2]
[348139922,1736351449568,-1958.06,0.0001219,2]
[348139923,1736351449578,-500.0,0.0001219,2]
[348139924,1736351449588,-500.0,0.0001219,2]
[348139925,1736351449597,-500.0,0.0001219,2]
[348139926,1736351449607,-500.0,0.0001219,2]
[348139927,1736351449618,-500.0,0.0001219,2]
[348139928,1736351449629,-500.0,0.0001219,2]
[348139929,1736351449638,-500.0,0.0001219,2]
[348139930,1736351449648,-500.0,0.0001219,2]
[348139931,1736351449657,-757.22592,0.00012191,2]
[348139932,1736351449666,-2136.64,0.00012191,2]
[348139933,1736351449675,-2004.82,0.00012191,2]
[348139934,1736351449685,-500.0,0.00012191,2]
[348139935,1736351449694,-504.32,0.00012191,2]
[348139936,1736351449704,-500.0,0.00012191,2]
[348139937,1736351449713,-532.21,0.00012191,2]
[348139938,1736351449722,-575.38,0.00012191,2]
[348139939,1736351449732,-500.0,0.00012191,2]
[348139940,1736351449741,-821.07,0.00012191,2]
[348139941,1736351449750,-528.46,0.00012191,2]
[348139942,1736351449760,-537.82,0.00012191,2]
[348139943,1736351449770,-948.76,0.00012191,2]
[348139944,1736351449780,-956.46,0.00012191,2]
[348139945,1736351449789,-500.0,0.00012191,2]
[348139946,1736351449799,-500.0,0.00012191,2]
[348139947,1736351449811,-1440.49,0.00012191,2]
[348139948,1736351449820,-500.0,0.00012191,2]
[348139949,1736351449830,-500.0,0.00012191,2]
[348139950,1736351449839,-726.92,0.00012191,2]
[348139951,1736351449848,-163.35550228,0.00012191,2]
[348139952,1736351449858,-500.0,0.00012191,2]
[348139953,1736351449867,-193.11,0.00012191,2]
[348139954,1736351449876,-2620.57,0.00012191,2]
[348139955,1736351449886,-650.46,0.00012191,2]
[348139956,1736351449895,-540.05,0.00012191,2]
[348139957,1736351449905,-2133.07,0.00012191,2]
[348139958,1736351449914,-983.48,0.00012191,2]
[348139959,1736351449924,-2063.57,0.00012191,2]
[348139960,1736351449933,-994.44,0.00012191,2]
[348139961,1736351449943,-760.62,0.00012191,2]
[348139962,1736351449954,-158.34895873,0.00012197,2]
[348139963,1736351449964,-2000.0,0.000122,2]
[348139964,1736351449973,-500.0,0.00012209,2]
[348139965,1736351449983,-500.0,0.00012209,2]
[348139966,1736351449992,-500.0,0.00012209,2]
[348139967,1736351450001,-500.0,0.00012209,2]
[348139968,1736351450011,-500.0,0.00012209,2]
[348139969,1736351450020,-444.3107,0.00012209,2]
[348139970,1736351450030,-160655.48976783,0.0001227,2]
[348139971,1736351450039,-798.2779119,0.0001227,2]
[348139972,1736351450049,-22412.7308874,0.0001227,2]
[348139973,1736351450063,-6687.8045091,0.0001227,2]
[348139974,1736351450072,-515.6079894,0.0001227,2]
[348139975,1736351450083,-742.89460763,0.0001227,2]
[348139976,1736351450092,-320.96,0.00012279,2]
[348139977,1736351450102,-195904.35711244,0.0001228,3]
[348139978,1736351450115,-15325.87375,0.0001228,3]
[348139979,1736351450128,-390.33001957,0.0001228,3]
[348139980,1736351450139,-4843.66728683,0.0001228,3]
[348139981,1736351450394,-500.0,0.00010156,2]
[348139982,1736351450404,-452.17408,0.00010156,2]
[348139983,1736351450444,-47.82592,0.00010156,2]
[348139984,1736351450454,-500.0,0.00010272,2]
[348139985,1736351450463,-161.65,0.00010546,2]
[348139986,1736351450472,-258.878945,0.0001228,3]
[348139987,1736351450507,-1000.0,0.00010145,2]
[348139988,1736351450516,-3588.20006,0.0001228,3]
[348139989,1736351450527,-1033.74183959,0.0001228,3]
[348139990,1736351450538,-110929.2817833,0.0001228,3]
[348139991,1736351450550,-3017.3976,0.0001228,3]
[348139992,1736351450563,-2820.87431498,0.0001228,3]
[348139993,1736351470704,200.0,9.974e-05,2]
[348139994,1736351480411,620.39,9.999e-05,2]
[348139995,1736351485437,611.99,9.999e-05,2]
[348139996,1736351486275,596.13,9.999e-05,2]
[348139997,1736351514895,1073.12,9.999e-05,2]
[348139998,1736351536939,594.54,9.999e-05,2]
[348139999,1736351543605,1494.98,9.999e-05,2]
[348140000,1736351570428,1028.41,9.999e-05,2]
[348140001,1736351576220,586.49,9.999e-05,2]
[348140002,1736351585573,652.01,9.999e-05,2]
[348140003,1736351626666,901.57,9.999e-05,2]
[348140004,1736351628211,562.06,9.999e-05,2]
[348140005,1736351631306,453.36,8.77e-05,2]
[348140006,1736351648066,1432.69,9.999e-05,2]